Cogmind - Beta 17 @@@ ROGUE MODE // 2026.07.25 @ 17:03:05 // Winter2019/RPGLIKE Player: Gallgagger Result: Self-destructed Performance ------------- Evolutions (1) 500 Regions Visited (6) 1200 Robots Destroyed (4) 20 Value Destroyed (126) 126 Prototype IDs (25) 500 Alien Tech Used (0) 0 Bonus (500) 500 TOTAL SCORE: 2846 Bonus ------- Pacifist 200 Aligned with FarCom 300 Cogmind --------- Core Integrity 332/600 Matter 300/300 Energy 49/100 System Corruption 2% Temperature Cool (6) Movement Flying (34) Location -8/Mines Parts ------- > --- POWER (1) -------- (None) > --- PROPULSION (3) --- Flight Unit Flight Unit (fused) Flight Unit > --- UTILITY (1) ------ 1C-UTU's Buckler > --- WEAPON (2) ------- 1C-UTU's Sword "Choppy" > --- INVENTORY (3) ---- Deploy-a-Sentry Deploy-a-Sentry Deploy-a-Sentry Peak State ------------ > --- POWER ------------ (None) > --- PROPULSION ------- Flight Unit Flight Unit Flight Unit > --- UTILITY ---------- 0b10 Alert Chip > --- WEAPON ----------- AWS/Thermal > --- INVENTORY -------- Deploy-a-Sentry Deploy-a-Sentry Deploy-a-Sentry [Rating: 27] Favorites ----------- Power None Propulsion Flight Unit Flight Unit Flight Unit Utility 0b10 Alert Chip Processor 0b10 Alert Chip Protection 1C-UTU's Buckler Weapon Beam Cannon Energy Gun AWS/Thermal Energy Cannon Beam Cannon Slashing Weapon 1C-UTU's Sword "Choppy" Build | -11 -10 -10 -9 -9 -9 -8 ------- Run | Yrd Mat Min Mat Min Exi Min Slots Evolved 3 | . . . . 2 1 . Power . | . . . . . . . Propulsion 2 | . . . . 2 . . Utility . | . . . . . . . Weapon 1 | . . . . . 1 . Parts Attached 8 | . . 1 1 2 2 2 Power . | . . . . . . . Engine . | . . . . . . . Core . | . . . . . . . Reactor . | . . . . . . . Propulsion 3 | . . 1 . 2 . . Treads . | . . . . . . . Leg . | . . . . . . . Wheel . | . . . . . . . Hover . | . . . . . . . Flight 3 | . . 1 . 2 . . Utility 2 | . . . . . 1 1 Device . | . . . . . . . Storage . | . . . . . . . Processor 1 | . . . . . 1 . Hackware . | . . . . . . . Protection 1 | . . . . . . 1 Artifact . | . . . . . . . Weapon 3 | . . . 1 . 1 1 Energy Gun 1 | . . . . . 1 . Energy Cannon 1 | . . . 1 . . . Ballistic Gun . | . . . . . . . Ballistic Cannon . | . . . . . . . Launcher . | . . . . . . . Special Weapon . | . . . . . . . Impact Weapon . | . . . . . . . Slashing Weapon 1 | . . . . . . 1 Piercing Weapon . | . . . . . . . Special Melee Weapon . | . . . . . . . Unidentified Prototypes 2 | . . . . . . 2 Parts Lost . | . . . . . . . Power . | . . . . . . . Propulsion . | . . . . . . . Utility . | . . . . . . . Weapon . | . . . . . . . Highest Loss Streak . | . . . . . . . To Critical Strikes . | . . . . . . . Average Backups . | . . . . . . . Power . | . . . . . . . Propulsion . | . . . . . . . Utility . | . . . . . . . Weapon . | . . . . . . . Tool/Special . | . . . . . . . Unused Backups . | . . . . . . . Power . | . . . . . . . Propulsion . | . . . . . . . Utility . | . . . . . . . Weapon . | . . . . . . . Tool/Special . | . . . . . . . Average Slot Usage (%) 50 | . . 8 32 51 68 71 Flight 30 | . . 8 25 26 46 42 Processor 4 | . . . . . 6 14 Energy Gun 4 | . . . . . 6 14 Energy Cannon 11 | . . . 7 24 8 . Peak Build Rating 27 | . . 1 2 4 27 27 Average Rating 9 | . . . 1 2 14 26 On Entrance 4 | . . . 1 2 4 27 Avg Prop Armor Cover (%) . | . . . . . . . Naked Turns 61 | . 31 30 . . . . Heaviest Build 8 | . . . 3 3 8 8 Greatest Support 27 | 3 3 4 4 12 27 27 Greatest Overweight (x) . | . . . . . . . Average Overweight (x) . | . . . . . . . Largest Inventory Capacity 3 | . . . . . 3 3 Average Capacity 1 | . . . . . 1 3 Most Carried 3 | . . . . . 3 3 Average Carried 1 | . . . . . 1 3 Final Capacity 3 | . . . . . 3 3 Final Carried 3 | . . . . . 3 3 Class Distribution -------------------- 100% | Mutant Dominant Class ---------------- Mutant | -10/Materials Mutant | -10/Mines Mutant | -9/Materials Mutant | -9/Mines Mutant | -9/Exiles Mutant | -8/Mines Resources | -11 -10 -10 -9 -9 -9 -8 ----------- Run | Yrd Mat Min Mat Min Exi Min Matter Collected 296 | 200 . 16 . 20 . 60 Remotely . | . . . . . . . Salvage Created 327 | . . . . 178 . 149 Parts 11 | . . . . 6 . 5 Haulers Intercepted . | . . . . . . . Recyclers Shooed . | . . . . . . . Parts Field Recycled . | . . . . . . . Retrieved Matter . | . . . . . . . Parts Self-Destructed . | . . . . . . . Prevented . | . . . . . . . Parts Restored . | . . . . . . . Kills | -11 -10 -10 -9 -9 -9 -8 ------- Run | Yrd Mat Min Mat Min Exi Min Combat Hostiles Destroyed 4 | . . . . 3 . 1 Guns 1 | . . . . . . 1 Cannons 3 | . . . . 3 . . Classes Destroyed 1 | . . . . 1 . . Grunt 3 | . . . . 3 . . Best Kill Streak 3 | . . . . 3 . 1 Combat Bots Only 3 | . . . . 3 . 1 Max Kills in Single Turn 1 | . . . . 1 . 1 Gunslinging . | . . . . . . . Exploded . | . . . . . . . Melee . | . . . . . . . Uniques/NPCs Destroyed 1 | . . . . . . 1 1C-UTU (-8/Mines) Combat | -11 -10 -10 -9 -9 -9 -8 -------- Run | Yrd Mat Min Mat Min Exi Min Hostile Shots Fired 60 | . . . 19 26 . 15 Missed 36 | . . . 11 16 . 9 Hits 24 | . . . 8 10 . 6 Projectile 24 | . . . 8 10 . 6 Damage Taken 298 | . . . 72 98 26 102 Core 268 | . . . 70 92 20 86 Absorbed by Shields . | . . . . . . . Redirected to Core 100 | . . . 5 24 20 51 Core Remaining (%) 100 | 100 . 100 . . . . Volleys Fired 10 | . . . . 10 . . Largest 1 | . . . . 1 . . Hottest 60 | . . . . 60 . . Shots Fired 35 | . . . . 10 . 25 Gun 25 | . . . . . . 25 Cannon 10 | . . . . 10 . . Launcher . | . . . . . . . Special . | . . . . . . . Kinetic . | . . . . . . . Thermal 35 | . . . . 10 . 25 Explosive . | . . . . . . . Electromagnetic . | . . . . . . . Robot Hit Streak 8 | . . . . 5 . 8 Robot Miss Streak 3 | . . . . 3 . 3 Penetration Max . | . . . . . . . Secondary Targets . | . . . . . . . Autonomous 25 | . . . . . . 25 Shots Hit Robots 21 | . . . . 7 . 14 Core Hits 10 | . . . . 4 . 6 Critical Kills . | . . . . . . . Critical Parts Destroyed . | . . . . . . . Critical Strikes . | . . . . . . . Melee Attacks . | . . . . . . . Impact . | . . . . . . . Slashing . | . . . . . . . Piercing . | . . . . . . . Sneak Attacks . | . . . . . . . Combat Hostiles . | . . . . . . . Follow-up Attacks . | . . . . . . . Damage Inflicted 560 | . . . . 125 26 409 Guns 409 | . . . . . . 409 Cannons 125 | . . . . 125 . . Explosions . | . . . . . . . Melee . | . . . . . . . Ramming 26 | . . . . . 26 . Kinetic . | . . . . . . . Thermal 534 | . . . . 125 . 409 Explosive . | . . . . . . . Electromagnetic . | . . . . . . . Impact . | . . . . . . . Slashing . | . . . . . . . Piercing . | . . . . . . . Highest Corruption 2 | . 2 2 . . 2 2 Average Corruption 2 | . 2 2 . . 2 2 Corruption Purged . | . . . . . . . Corruption Blocked . | . . . . . . . Effects 3 | . . 1 . . . 2 Message Errors 1 | . . . . . . 1 Matter Fused 1 | . . 1 . . . . Parts Fused 1 | . . . . . . 1 Overload Shots . | . . . . . . . Overflow Damage . | . . . . . . . Projectiles . | . . . . . . . Explosions . | . . . . . . . Melee . | . . . . . . . Knockbacks . | . . . . . . . Impact . | . . . . . . . Kinetic . | . . . . . . . Secondary . | . . . . . . . Self-Inflicted Damage 26 | . . . . . 26 . Shots . | . . . . . . . Rammed . | . . . . . . . Targets Rammed . | . . . . . . . Kicked . | . . . . . . . Crushed . | . . . . . . . Highest Temperature 106 | . . . . 106 . . Average Temperature 48 | . . . . 48 . . Received Heat Transfer 90 | . . . 6 30 . 54 Siege Activations . | . . . . . . . Martial Activations . | . . . . . . . Shielding Activations . | . . . . . . . Robots Disrupted . | . . . . . . . Combat Hostiles . | . . . . . . . Robots Corrupted . | . . . . . . . Combat Hostiles . | . . . . . . . Parts Fried . | . . . . . . . Impact Corruptions . | . . . . . . . Robots Melted . | . . . . . . . Combat Hostiles . | . . . . . . . Parts Melted . | . . . . . . . Heat Transferred 385 | . . . . 259 . 126 Parts Sabotaged . | . . . . . . . Parts Stolen . | . . . . . . . Parts Stripped . | . . . . . . . Power Chain Reactions . | . . . . . . . Alert | -11 -10 -10 -9 -9 -9 -8 ------- Run | Yrd Mat Min Mat Min Exi Min Maximum Alert Level . | . . . . . . . Low Security (%) 100 | 100 100 100 100 100 . 100 Level 1 . | . . . . . . . Level 2 . | . . . . . . . Level 3 . | . . . . . . . Level 4 . | . . . . . . . Level 5 . | . . . . . . . High Security . | . . . . . . . Max Security . | . . . . . . . Peak Influence 115 | . . . 65 115 . 90 Initial 25 | . . . . 25 . . Average 27 | . . . 8 52 . 8 Influence Increases 387 | . . . 75 220 . 92 Destroy 0b10 Robot/C 80 | . . . . 80 . . Destroy Leader 20 | . . . . 20 . . Disable Machine 12 | . . . . . . 12 Destroy Structure 8 | . . . . . . 8 Lose Combat Pursuer 267 | . . . 75 120 . 72 Influence Decreases 307 | . . . 10 220 65 12 Entered New Map 105 | . . . . 40 65 . Time Decay 162 | . . . 10 140 . 12 Lost Ally 40 | . . . . 40 . . Squads Dispatched . | . . . . . . . Investigation . | . . . . . . . Extermination . | . . . . . . . Reinforcement . | . . . . . . . Assault . | . . . . . . . Garrison . | . . . . . . . Intercept . | . . . . . . . Searches Triggered . | . . . . . . . Construction Impeded . | . . . . . . . Haulers Reinforced . | . . . . . . . Active Scanning Responses . | . . . . . . . Cargo Convoy Interrupts . | . . . . . . . Stealth | -11 -10 -10 -9 -9 -9 -8 --------- Run | Yrd Mat Min Mat Min Exi Min Distress Signals . | . . . . . . . Communications Jammed . | . . . . . . . Distress Signals . | . . . . . . . Times Spotted 29 | . . . 7 15 . 7 Peak Tracking Total 9 | . . . 7 4 9 7 Tactical Retreats 5 | . . . 2 2 . 1 Traps | -11 -10 -10 -9 -9 -9 -8 ------- Run | Yrd Mat Min Mat Min Exi Min Traps Triggered 1 | . 1 . . . . . Indirectly . | . . . . . . . Trap Hack Attempts . | . . . . . . . Triggered . | . . . . . . . Disarmed . | . . . . . . . Reprogrammed . | . . . . . . . Reused . | . . . . . . . Traps Extracted . | . . . . . . . Installed . | . . . . . . . Triggered . | . . . . . . . Machines | -11 -10 -10 -9 -9 -9 -8 ---------- Run | Yrd Mat Min Mat Min Exi Min Machines Disabled 2 | . . . . . 1 1 Max in Single Turn 1 | . . . . . 1 1 Machines Repaired . | . . . . . . . Machines Dismantled . | . . . . . . . Machines Sabotaged . | . . . . . . . Overloaded Fab Kills . | . . . . . . . Hacking | -11 -10 -10 -9 -9 -9 -8 --------- Run | Yrd Mat Min Mat Min Exi Min Machines Accessed 1 | . . . . . 1 . Terminals . | . . . . . . . Fabricators . | . . . . . . . Repair Stations . | . . . . . . . Recycling Units . | . . . . . . . Scanalyzers . | . . . . . . . Garrison Access . | . . . . . . . Total Hacks 1 | . . . . . 1 . Successful 1 | . . . . . 1 . Failed . | . . . . . . . Catastrophic . | . . . . . . . Database Lockouts . | . . . . . . . Manual 1 | . . . . . 1 . Terminals . | . . . . . . . Fabricators . | . . . . . . . Repair Stations . | . . . . . . . Recycling Units . | . . . . . . . Scanalyzers . | . . . . . . . Garrison Access . | . . . . . . . Terminal Hacks 1 | . . . . . 1 . Proto ID Catalog 1 | . . . . . 1 . Fabricator Hacks . | . . . . . . . Repair Station Hacks . | . . . . . . . Recycling Unit Hacks . | . . . . . . . Scanalyzer . | . . . . . . . Garrison Access Hacks . | . . . . . . . Unauthorized Hacks . | . . . . . . . Terminals . | . . . . . . . Fabricators . | . . . . . . . Repair Stations . | . . . . . . . Recycling Units . | . . . . . . . Scanalyzers . | . . . . . . . Garrison Access . | . . . . . . . Data Cores Recovered . | . . . . . . . Used . | . . . . . . . Hacking Detections . | . . . . . . . Full Trace Events . | . . . . . . . Feedback Events . | . . . . . . . Feedback Blocked . | . . . . . . . Robot Schematics Acquired . | . . . . . . . Robots Built . | . . . . . . . Authchips . | . . . . . . . Time . | . . . . . . . Total Robot Build Rating . | . . . . . . . Part Schematics Acquired . | . . . . . . . Parts Built . | . . . . . . . Authchips . | . . . . . . . Time . | . . . . . . . Total Part Build Rating . | . . . . . . . Part Studies Acquired . | . . . . . . . Parts Repaired . | . . . . . . . Time . | . . . . . . . Parts Recycled . | . . . . . . . Recycled Matter . | . . . . . . . Retrieved Matter . | . . . . . . . Retrieved Components . | . . . . . . . Parts Scanalyzed . | . . . . . . . Part Schematics Acquired . | . . . . . . . Parts Damaged . | . . . . . . . Bothacking | -11 -10 -10 -9 -9 -9 -8 ------------ Run | Yrd Mat Min Mat Min Exi Min Used RIF Installer . | . . . . . . . Robots Hacked . | . . . . . . . Non-combat . | . . . . . . . Combat . | . . . . . . . Robot Hacks Applied . | . . . . . . . Relay Couplers Released . | . . . . . . . Fabnet Peak Effective % . | . . . . . . . Robots Rewired . | . . . . . . . Allies Hacked . | . . . . . . . Hacks Repelled . | . . . . . . . Allies | -11 -10 -10 -9 -9 -9 -8 -------- Run | Yrd Mat Min Mat Min Exi Min Total Allies 2 | . . . . 2 . . Largest Group 2 | . . . . 2 . . Highest-Rated Group 42 | . . . . 42 . . Highest-Rated Ally 31 | . . . . 31 . . Total Orders . | . . . . . . . Ally Attacks 4 | . . . . 4 . . Total Damage 65 | . . . . 65 . . Kills 1 | . . . . 1 . . Allies Corrupted . | . . . . . . . Allies Melted . | . . . . . . . Intel | -11 -10 -10 -9 -9 -9 -8 ------- Run | Yrd Mat Min Mat Min Exi Min Active Infowar (turns) . | . . . . . . . Robot Analysis Total . | . . . . . . . Derelict Logs Recovered 2 | . . 1 . 1 . . Drone Launches . | . . . . . . . Drone Recoveries . | . . . . . . . Exploration | -11 -10 -10 -9 -9 -9 -8 ------------- Run | Yrd Mat Min Mat Min Exi Min Turns Passed 717 | 11 31 55 55 284 93 188 Spaces Moved 1730 | 22 61 119 133 638 244 513 Core 142 | 22 61 59 . . . . Treads . | . . . . . . . Legs . | . . . . . . . Wheels . | . . . . . . . Hover . | . . . . . . . Flight 1588 | . . 60 133 638 244 513 Fastest Speed 34 | 50 50 40 40 34 34 34 Average Speed 37 | 50 50 44 40 39 34 34 Slowest Speed 50 | 50 50 50 40 40 34 34 Overloaded Moves . | . . . . . . . Propulsion Burnouts . | . . . . . . . Robots Hopped 35 | . . 4 12 7 . 12 Potential Cave-ins . | . . . . . . . Cave-ins Triggered . | . . . . . . . Exploration Rate (%) 46 | 3 18 40 16 96 60 90 Regions Visited 6 Branch Regions 4 Pre-discovered Areas . | . . . . . . . Known Exits Taken . | . . . . . . . Unknown Exits Taken 6 | 1 1 1 1 1 1 . Scrap Searched 5 | . . 1 . 3 . 1 Spaces Dug . | . . . . . . . Terrain Destroyed 8 | . . . . . . 8 Melee . | . . . . . . . Projectile 8 | . . . . . . 8 AOE . | . . . . . . . Terrain Rammed 1 | . . . . . 1 . Walls Destroyed . | . . . . . . . Machines Disabled 1 | . . . . . 1 . Actions | -11 -10 -10 -9 -9 -9 -8 --------- Run | Yrd Mat Min Mat Min Exi Min Total 1734 | 21 60 115 121 651 252 514 Wait 19 | . . . . 9 . 10 Move 1663 | 21 60 111 112 623 243 493 Hop 26 | . . 3 8 7 . 8 Pick Up 3 | . . . . . 3 . Fast Attach 8 | . . 1 1 2 3 1 Attach . | . . . . . . . Detach . | . . . . . . . Swap 1 | . . . . . . 1 Drop 3 | . . . . . 2 1 Fire 10 | . . . . 10 . . Melee . | . . . . . . . Ram 1 | . . . . . 1 . Kick . | . . . . . . . Crush . | . . . . . . . Escape Stasis . | . . . . . . . Rewire . | . . . . . . . Trap . | . . . . . . . Miscellaneous . | . . . . . . . Route ------- -11/Scrapyard -10/Materials -10/Mines -9/Materials -9/Mines (discovered 3 exits: [*Mat x2] / *Exi) -9/Exiles -8/Mines (discovered 2 exits: [*Mat x2]) History --------- Turn | Location | Event 2 | -11/Scrapyard | Met Revision 17 3 | -11/Scrapyard | Discovered new exit (range 15) 12 | -11/Scrapyard | Entered Materials 39 | -10/Materials | Discovered new exit (range 7) 43 | -10/Materials | Entered Mines 52 | -10/Mines | Learned Materials stockpile data 95 | -10/Mines | Discovered new exit (range 9) 98 | -10/Mines | Entered Materials 100 | -9/Materials | Reached level 2 148 | -9/Materials | Discovered new exit (range 12) 153 | -9/Materials | Entered Mines 156 | -9/Mines | Discovered new exit (range 6) 243 | -9/Mines | Learned Materials stockpile data 255 | -9/Mines | Discovered new exit (range 12) 308 | -9/Mines | Build established: Mutant 391 | -9/Mines | Reached level 3 414 | -9/Mines | Upgraded with Propulsion slot (x2) 436 | -9/Mines | Deemed a non-threat by the Exiles lab entrance 436 | -9/Mines | Discovered new exit (range 5) 437 | -9/Mines | Entered Exiles 447 | -9/Exiles | Met 8R-AWN 451 | -9/Exiles | Met EX-HEX 461 | -9/Exiles | Met EX-BIN 465 | -9/Exiles | Aligned with FarCom system 465 | -9/Exiles | Given EX-Vault access code 473 | -9/Exiles | Opened EX-Vault 476 | -9/Exiles | Found Deploy-a-Sentry 477 | -9/Exiles | Found Deploy-a-Sentry 479 | -9/Exiles | Found Deploy-a-Sentry 481 | -9/Exiles | Upgraded with Weapon slot (x1) 481 | -9/Exiles | Found AWS/Thermal 484 | -9/Exiles | Found 0b10 Alert Chip 492 | -9/Exiles | Warned to stay clear of 0b10 Research branches 504 | -9/Exiles | Met EX-DEC 516 | -9/Exiles | Attacked by the Exiles 527 | -9/Exiles | Discovered new exit (range 10) 530 | -9/Exiles | Stole three prototypes: 0b10 Alert Chip, AWS/Thermal, Deploy-a-Sentry 530 | -9/Exiles | Entered Mines 541 | -8/Mines | Found a Scrap Suit stashed away for nefarious purposes 628 | -8/Mines | Discovered new exit (range 13) 659 | -8/Mines | Discovered new exit (range 8) 689 | -8/Mines | 1C-UTU came to Exiles' defense 712 | -8/Mines | Destroyed 1C-UTU 714 | -8/Mines | Found Prototype Slashing Weapon 714 | -8/Mines | Identified 1C-UTU's Sword "Choppy" 716 | -8/Mines | Found Prototype Protection 716 | -8/Mines | Identified 1C-UTU's Buckler 718 | -8/Mines | Self-destructed Last Messages --------------- and convince them to let us into the system." 00566_ T-07 Excavator is excavating. 00608_ 8< 1N4IKZGDBX14UWQV 6U 00628_ EXIT=FOUND 00640_ K-01 Serf collects debris. 00651_ U-05 Engineer builds a Wall. 00659_ EXIT=FOUND 00669_ K-01 Serf cleans the Plasma Injector. 00689_ 1C-UTU: "I came as fast as I could... Wait, it was you!" 00702_ Matter Pump disabled. 00710_ Destroyed Prototype Device. 00712_ 1C-UTU destroyed. 00713_ Dropped AWS/Thermal. 00714_ Acquired Prototype Slashing Weapon. 00714_ Identified 1C-UTU's Sword "Choppy". 00716_ Discarded 0b10 Alert Chip. 00716_ Acquired Prototype Protection. 00716_ Identified 1C-UTU's Buckler. 00717_ System corrupted: Flight Unit fused. 00717_ Acquired 20 matter. Map ----- +----------------------------------------------------+ | ## #??????????# """ ## #?????????????#### #?????? | | ## ####???????# """ ## #?????????????#### ##????? | | ##??????# ## #????????????## ##???? | | #??????######### #????????????# ##??? | | ## #??????????????# #????????????# #### | | ## #??????????????# #????????????## | | ## #??????????????# #?????????????## | | ## #?############## #??????????????# | | ## ##?# #??????????????## # | | #??# ##### ######??????????????## # | | ### ##?# "#??# #??????????????????## # | | ??## #?## = #### #?????????????????## | | ???## #??##% = #????????????????## | | ##?## ##?## #####??????????? ??## | | ## ###" "#?????????????? #??# | | "# ##????????????? #??# ## | | #????????????? #??# ##? | | #???????????? #??## #?? | | # #???####????? #???## #?? | | ## ## """ ##?## ##???? #???## ##?? | | ####### """ #;# ##?? #????# ### #??? | | "%% #?? ##??# ##?# #??? | | ### #??# ##??# #??? | | #####" #### #??# #???# #??? | | #???### "###??## [ #??## ##???# #??? | | ??????##########?????## !@! ##???##?????# #??? | | ????????????????????## %! ####???????????# #??? | | ????????????????????# ##??????????????# ##??? | | ????????????????????# #???????????????##????? | | ????????????????????## ##?????????????????????? | | ?????????????????????######??????????????????????? | | ?????????????????????????????????????????????????? | | ?????????????????????????????????????????????????? | | ?????????????????????????????????????????????????? | | ?????????????????????????????????????????????????? | | ?????????????????????????????????????????????????? | | ?????????????????????????????????????????????????? | | ?????????????????????????????????????????????????? | | ?????????????????????????????????????????????????? | | ?????????????????????????????????????????????????? | | ?????????????????????????????????????????????????? | | | | | | | | | | | | | | | | | | | +----------------------------------------------------+ Best States ------------- Heat Dissipation 49 Energy Generation 5 Energy Capacity 100 Matter Stores 300 Matter Capacity 300 Sight Range 16 Terrain Scan Density 10 Evasion (%) 63 Item Schematics ----------------- None Robot Schematics ------------------ None Fabricated ------------ Nothing Repaired ---------- Nothing Studied --------- None Alien Tech Used ----------------- None Achievements -------------- None Challenges ------------ None RPGLIKE | -11 -10 -10 -9 -9 -9 -8 --------- Run | Yrd Mat Min Mat Min Exi Min Levels Raised 2 | . . . 1 1 . . XP Earned 7010 | 3000 . 600 1500 1000 350 560 XP Spent 5420 | . . . . 1620 3800 . Upgrades 13 | . . . . 6 7 . Propulsion Slot 2 | . . . . 2 . . Weapon Slot 1 | . . . . . 1 . Heat Dissipation 4 | . . . . 4 . . Mass Support 3 | . . . . . 3 . Inventory Capacity 3 | . . . . . 3 . Protomatter Created . | . . . . . . . Protomatter Decayed 57 | . . . . 57 . . Game ------ Seed BeamAdvancedExoskeleton Manual? 0 Play Time 00:08:12 Cumulative 689.4 hours Start 2026.07.25 @ 16:54:27 End 2026.07.25 @ 17:03:05 Sessions 1 Manual Loads 0 Difficulty Rogue Special Mode Winter2019/RPGLIKE Game No. 355 Rogue 201 Adventurer 154 Explorer 0 Win Type - Total 24 Types 4/6/5/3/2/1/0/1/1/1 Lore% 95 Gallery% 89 Achievement% 68 Wizard Run 0 Options --------- Layout 0 ASCII 0 Keyboard 0 Movement Numpad Keybinds 0 Fullscreen 2 Font 18/SmallcapsGlow Map View 76x50 Zoom Use 0% Tactical HUD 1 Map Filters NONE Filters NONE Steam 1 RUN: 92e04e47-472e-4037-acba-644bb6856fcb